fUST/lending_fUST_20250316
["ID","MTS","AMOUNT","RATE_DAILY","PERIOD"]
[356240125,1742124638574,-500.0,8.219e-05,2]
[356240126,1742124638584,-500.0,8.219e-05,2]
[356240127,1742124638594,-500.0,8.219e-05,2]
[356240128,1742124638604,-1304.3,8.219e-05,2]
[356240129,1742124638613,-1414.12,8.219e-05,2]
[356240130,1742124638623,-500.0,8.219e-05,2]
[356240131,1742124638632,-1796.37,8.219e-05,2]
[356240132,1742124638642,-1895.09,8.219e-05,2]
[356240133,1742124638653,-500.0,8.219e-05,2]
[356240134,1742124638663,-500.0,8.219e-05,2]
[356240135,1742124638673,-500.0,8.219e-05,2]
[356240136,1742124638683,-500.0,8.219e-05,2]
[356240137,1742124638693,-500.0,8.219e-05,2]
[356240138,1742124638702,-605.44,8.219e-05,2]
[356240139,1742124638713,-500.0,8.219e-05,2]
[356240140,1742124638722,-367.17145523,8.219e-05,2]
[356240141,1742124638732,-500.0,8.219e-05,2]
[356240142,1742124638742,-569.67,8.219e-05,2]
[356240143,1742124638752,-500.0,8.219e-05,2]
[356240144,1742124638762,-557.1,8.219e-05,2]
[356240145,1742124638773,-500.0,8.219e-05,2]
[356240146,1742124638782,-500.0,8.219e-05,2]
[356240147,1742124638791,-513.70180223,8.219e-05,2]
[356240148,1742124638801,-500.0,8.219e-05,2]
[356240149,1742124638810,-500.0,8.219e-05,2]
[356240150,1742124638819,-500.0,8.219e-05,2]
[356240151,1742124638829,-2645.45,8.219e-05,2]
[356240152,1742124638839,-169.57936197,8.219e-05,2]
[356240153,1742124638848,-500.0,8.219e-05,2]
[356240154,1742124638858,-500.0,8.219e-05,2]
[356240155,1742124638868,-2164.65,8.219e-05,2]
[356240156,1742124638878,-500.0,8.219e-05,2]
[356240157,1742124638887,-500.0,8.219e-05,2]
[356240158,1742124638897,-500.0,8.219e-05,2]
[356240159,1742124638910,-500.0,8.219e-05,2]
[356240160,1742124638920,-500.0,8.219e-05,2]
[356240161,1742124638929,-500.0,8.219e-05,2]
[356240162,1742124638939,-500.0,8.219e-05,2]
[356240163,1742124638948,-500.0,8.219e-05,2]
[356240164,1742124638958,-537.84,8.219e-05,2]
[356240165,1742124638968,-500.0,8.219e-05,2]
[356240166,1742124638977,-508.37009116,8.219e-05,2]
[356240167,1742124638987,-500.0,8.219e-05,2]
[356240168,1742124638997,-484.29,8.219e-05,2]
[356240169,1742124639006,-500.0,8.219e-05,2]
[356240170,1742124639017,-500.0,8.219e-05,2]
[356240171,1742124639027,-500.0,8.219e-05,2]
[356240172,1742124639037,-508.68831741,8.219e-05,2]
[356240173,1742124639047,-500.0,8.219e-05,2]
[356240174,1742124639057,-496.65961214,8.219e-05,2]
[356240175,1742124639067,-2036.64,8.219e-05,2]
[356240176,1742124639077,-905.1,8.219e-05,2]
[356240177,1742124639087,-5416.11,8.219e-05,2]
[356240178,1742124639096,-500.0,8.219e-05,2]
[356240179,1742124639106,-500.0,8.219e-05,2]
[356240180,1742124639116,-1730.58,8.219e-05,2]
[356240181,1742124639126,-500.0,8.219e-05,2]
[356240182,1742124639135,-500.0,8.219e-05,2]
[356240183,1742124639145,-263.67,8.219e-05,2]
[356240184,1742124639155,-438.46,8.219e-05,2]
[356240185,1742124639165,-567.64,8.219e-05,2]
[356240186,1742124639175,-500.0,8.219e-05,2]
[356240187,1742124639186,-500.0,8.219e-05,2]
[356240188,1742124639195,-289.12,8.219e-05,2]
[356240189,1742124639204,-500.0,8.219e-05,2]
[356240190,1742124639214,-1557.37,8.219e-05,2]
[356240191,1742124639224,-500.0,8.219e-05,2]
[356240192,1742124639233,-1960.19,8.219e-05,2]
[356240193,1742124639243,-500.0,8.219e-05,2]
[356240194,1742124639252,-990.34,8.219e-05,2]
[356240195,1742124639262,-384.46,8.219e-05,2]
[356240196,1742124639275,-500.0,8.219e-05,2]
[356240197,1742124639284,-500.0,8.219e-05,2]
[356240198,1742124639294,-86897.67931531,8.219e-05,2]
[356240199,1742124639309,-1158.88657255,8.219e-05,2]
[356240200,1742124639354,-16575.3986,8.219e-05,2]
[356240208,1742124640346,-3591.44,8.219e-05,2]
[356240209,1742124640401,-3989.60213342,8.219e-05,2]
[356240263,1742124643367,-1475.39758759,8.219e-05,2]
[356240266,1742124643379,-455.0739918,8.219e-05,2]
[356240330,1742124646358,-30065.05179933,8.219e-05,2]
[356240332,1742124646368,-500.0,8.219e-05,2]
[356240334,1742124646377,-783.71,8.219e-05,2]
[356240336,1742124646387,-1208.99,8.219e-05,2]
[356240338,1742124646396,-507.03690541,8.219e-05,2]
[356240340,1742124646406,-502.27,8.219e-05,2]
[356240342,1742124646415,-500.0,8.219e-05,2]
[356240344,1742124646424,-516.10616448,8.219e-05,2]
[356240346,1742124646433,-500.0,8.219e-05,2]
[356240348,1742124646443,-500.0,8.219e-05,2]
[356240350,1742124646452,-500.0,8.219e-05,2]
[356240351,1742124646462,-500.0,8.219e-05,2]
[356240353,1742124646473,-500.0,8.219e-05,2]
[356240355,1742124646485,-507.09828022,8.219e-05,2]
[356240357,1742124646496,-2853.31,8.219e-05,2]
[356240359,1742124646505,-500.0,8.219e-05,2]
[356240361,1742124646514,-1921.17,8.219e-05,2]
[356240363,1742124646525,-625.95714623,8.219e-05,2]
[356240365,1742124646534,-500.0,8.219e-05,2]
[356240367,1742124646543,-508.23149261,8.219e-05,2]
[356240368,1742124646552,-503.56992451,8.219e-05,2]
[356240370,1742124646562,-517.87416041,8.219e-05,2]
[356240372,1742124646576,-500.0,8.219e-05,2]
[356240374,1742124646586,-920.47,8.219e-05,2]
[356240376,1742124646596,-511.7397753,8.219e-05,2]
[356240378,1742124646607,-500.0,8.219e-05,2]
[356240380,1742124646616,-1721.52,8.219e-05,2]
[356240381,1742124646626,-284.95,8.219e-05,2]
[356240383,1742124646636,-500.0,8.219e-05,2]
[356240385,1742124646647,-500.0,8.219e-05,2]
[356240386,1742124646657,-500.0,8.219e-05,2]
[356240387,1742124646667,-622.2,8.269e-05,2]
[356240388,1742124646677,-645.2214,8.324e-05,2]
[356240389,1742124646687,-669.0945918,8.379e-05,2]
[356240390,1742124646697,-151.0,8.434e-05,2]
[356240391,1742124646706,-693.8510917,8.434e-05,2]
[356240392,1742124646716,-500.98359949,8.473e-05,2]
[356240393,1742124646725,-719.52358209,8.489e-05,2]
[356240394,1742124646735,-633.29018489,8.493e-05,2]
[356240395,1742124646745,-500.0,8.493e-05,2]
[356240396,1742124646755,-500.0,8.493e-05,2]
[356240397,1742124646764,-500.0,8.493e-05,2]
[356240398,1742124646775,-151.03165658,8.493e-05,2]
[356240399,1742124646784,-503.04221596,8.493e-05,2]
[356240400,1742124646794,-177.46664796,8.493e-05,2]
[356240401,1742124646803,-500.0,8.493e-05,2]
[356240402,1742124646814,-422.48256439,8.493e-05,2]
[356240403,1742124646826,-77.51743561,8.493e-05,2]
[356240404,1742124646837,-514.7758137,8.493e-05,2]
[356240405,1742124646847,-500.0,8.493e-05,2]
[356240406,1742124646857,-509.97,8.493e-05,2]
[356240407,1742124646867,-500.0,8.493e-05,2]
[356240408,1742124646877,-500.0,8.493e-05,2]
[356240409,1742124646887,-500.0,8.493e-05,2]
[356240410,1742124646896,-500.0,8.493e-05,2]
[356240411,1742124646906,-420.62,8.493e-05,2]
[356240412,1742124646916,-500.0,8.493e-05,2]
[356240413,1742124646926,-500.0,8.493e-05,2]
[356240414,1742124646936,-500.0,8.493e-05,2]
[356240415,1742124646946,-500.0,8.493e-05,2]
[356240416,1742124646955,-500.0,8.493e-05,2]
[356240417,1742124646965,-500.0,8.493e-05,2]
[356240418,1742124646974,-380.19,8.493e-05,2]
[356240419,1742124646984,-500.0,8.493e-05,2]
[356240420,1742124646994,-473.47390429,8.493e-05,2]
[356240425,1742125363862,3377.3,0.00014,30]
[356240426,1742125662237,-500.0,8.388e-05,7]
[356240538,1742125832779,-161.4557644,7.403e-05,2]
[356240540,1742125832790,-2023.0,8.122e-05,2]
[356240541,1742125832799,-399.0,8.122e-05,2]
[356240543,1742125832808,-246.127,8.218e-05,2]
[356240545,1742125832818,-271.41094198,8.218e-05,2]
[356240547,1742125832827,-300.0,8.218e-05,2]
[356240549,1742125832836,-500.0,8.219e-05,2]
[356240552,1742125832846,-500.0,8.219e-05,2]
[356240554,1742125832856,-500.0,8.219e-05,2]
[356240557,1742125832866,-500.0,8.219e-05,2]
[356240560,1742125832876,-500.0,8.219e-05,2]
[356240562,1742125832885,-500.0,8.219e-05,2]
[356240564,1742125832895,-419.16,8.219e-05,2]
[356240566,1742125832905,-559.07,8.219e-05,2]
[356240568,1742125832915,-313.72,8.219e-05,2]
[356240570,1742125832924,-545.93,8.219e-05,2]
[356240572,1742125832934,-500.0,8.219e-05,2]
[356240574,1742125832944,-500.0,8.219e-05,2]
[356240576,1742125832953,-648.42,8.219e-05,2]
[356240578,1742125832963,-395.09,8.219e-05,2]
[356240580,1742125832973,-230.27379066,8.219e-05,2]
[356240582,1742125832983,-514.64047209,8.219e-05,2]
[356240584,1742125832997,-500.0,8.219e-05,2]
[356240586,1742125833008,-500.0,8.219e-05,2]
[356240588,1742125833018,-500.0,8.219e-05,2]
[356240590,1742125833029,-500.0,8.219e-05,2]
[356240592,1742125833039,-573.02,8.219e-05,2]
[356240595,1742125833050,-500.0,8.219e-05,2]
[356240597,1742125833060,-500.0,8.219e-05,2]
[356240599,1742125833071,-500.0,8.219e-05,2]
[356240601,1742125833081,-500.0,8.219e-05,2]
[356240603,1742125833090,-500.0,8.219e-05,2]
[356240605,1742125833102,-958.52,8.219e-05,2]
[356240607,1742125833112,-500.0,8.219e-05,2]
[356240609,1742125833122,-500.0,8.219e-05,2]
[356240611,1742125833132,-500.0,8.219e-05,2]
[356240613,1742125833143,-500.0,8.219e-05,2]
[356240615,1742125833154,-500.0,8.219e-05,2]
[356240617,1742125833164,-1249.96,8.219e-05,2]
[356240619,1742125833175,-1355.2,8.219e-05,2]
[356240621,1742125833185,-1816.13,8.219e-05,2]
[356240624,1742125833195,-1661.34,8.219e-05,2]
[356240625,1742125833205,-26.30445451,8.219e-05,2]
[356240685,1742125843386,-473.69554549,8.219e-05,2]
[356240686,1742125843396,-236.30072173,8.219e-05,2]
[356240689,1742125843634,-343.90927827,8.219e-05,2]
[356240690,1742125843643,-500.0,8.219e-05,2]
[356240691,1742125843655,-515.07550072,8.219e-05,2]
[356240692,1742125843665,-500.0,8.219e-05,2]
[356240693,1742125843674,-500.0,8.219e-05,2]
[356240694,1742125843684,-500.0,8.219e-05,2]
[356240695,1742125843694,-500.0,8.219e-05,2]
[356240696,1742125843704,-500.0,8.219e-05,2]
[356240697,1742125843714,-500.0,8.219e-05,2]
[356240698,1742125843724,-500.0,8.219e-05,2]
[356240699,1742125843733,-1353.2911976,8.219e-05,2]
[356240816,1742125846451,-1351.3288024,8.219e-05,2]
[356240818,1742125846461,-500.0,8.219e-05,2]
[356240820,1742125846471,-500.0,8.219e-05,2]
[356240822,1742125846481,-500.0,8.219e-05,2]
[356240824,1742125846490,-195.35,8.219e-05,2]
[356240826,1742125846500,-500.0,8.219e-05,2]
[356240828,1742125846509,-500.0,8.219e-05,2]
[356240830,1742125846519,-500.0,8.219e-05,2]
[356240832,1742125846529,-500.0,8.219e-05,2]
[356240834,1742125846539,-500.0,8.219e-05,2]
[356240836,1742125846548,-500.0,8.219e-05,2]
[356240838,1742125846559,-36.1677036,8.219e-05,2]
[356240840,1742125846571,-2038.2822964,8.219e-05,2]
[356240842,1742125846581,-867.39,8.219e-05,2]
[356240843,1742125846591,-500.0,8.219e-05,2]
[356240845,1742125846600,-515.43,8.219e-05,2]
[356240847,1742125846610,-1658.47,8.219e-05,2]
[356240849,1742125846620,-1951.78,8.219e-05,2]
[356240851,1742125846629,-500.0,8.219e-05,2]
[356240852,1742125846639,-554.71,8.219e-05,2]
[356240853,1742125846649,-5190.44,8.219e-05,2]
[356240854,1742125846658,-248.4977036,8.219e-05,2]
[356240855,1742125846671,-251.5022964,8.219e-05,2]
[356240856,1742125846682,-500.0,8.219e-05,2]
[356240857,1742125846692,-432.9699868,8.219e-05,2]
[356240858,1742125846703,-67.0300132,8.219e-05,2]
[356240859,1742125846713,-949.07,8.219e-05,2]
[356240860,1742125846723,-99.97496603,8.219e-05,2]
[356240861,1742125846736,-400.02503397,8.219e-05,2]
[356240862,1742125846745,-430.63688104,8.219e-05,2]
[356240865,1742126816440,207.08532772,0.00014,30]
[356241162,1742127038523,-189.98765939,8.118e-05,2]
[356241163,1742127038532,-80.97562164,8.118e-05,2]
[356241171,1742127040832,-123.02437836,8.118e-05,2]
[356241172,1742127040842,-649.76975787,8.119e-05,2]
[356241173,1742127040855,-493.28256153,8.119e-05,2]
[356241215,1742127043593,-1692.02506732,8.119e-05,2]
[356241217,1742127043605,-7421.13278757,8.119e-05,2]
[356241233,1742127043752,-818.88102961,8.119e-05,2]
[356241280,1742127046579,-6414.00478509,8.119e-05,2]
[356241284,1742127046634,-2469.24,8.119e-05,2]
[356241285,1742127046646,-164614.2659542,8.119e-05,2]
[356241286,1742127046658,-37427.39805681,8.119e-05,2]
[356241287,1742127046667,-209.69881728,8.122e-05,2]
[356241288,1742127046676,-310.573,8.122e-05,2]
[356241289,1742127046686,-209.69881727,8.146e-05,2]
[356241290,1742127046695,-209.69881727,8.171e-05,2]
[356241291,1742127046705,-500.0,8.178e-05,2]
[356241292,1742127046714,-500.0,8.193e-05,2]
[356241293,1742127046724,-209.69881727,8.195e-05,2]
[356241294,1742127046733,-196.902,8.2e-05,2]
[356241296,1742127046743,-600.0,8.214e-05,2]
[356241298,1742127046753,-5512.62201794,8.219e-05,7]
[356241300,1742127046763,-523.18,8.219e-05,2]
[356241302,1742127046772,-500.0,8.219e-05,2]
[356241304,1742127046782,-500.0,8.219e-05,2]
[356241306,1742127046792,-500.0,8.219e-05,2]
[356241308,1742127046801,-500.0,8.219e-05,2]
[356241310,1742127046811,-500.0,8.219e-05,2]
[356241312,1742127046822,-505.63107761,8.219e-05,2]
[356241314,1742127046831,-515.25390076,8.219e-05,2]
[356241316,1742127046841,-500.0,8.219e-05,2]
[356241318,1742127046850,-503.50287522,8.219e-05,2]
[356241320,1742127046860,-500.0,8.219e-05,2]
[356241322,1742127046870,-500.0,8.219e-05,2]
[356241324,1742127046879,-528.02758655,8.219e-05,2]
[356241326,1742127046889,-589.93,8.219e-05,2]
[356241328,1742127046899,-507.24016118,8.219e-05,2]
[356241330,1742127046908,-500.0,8.219e-05,2]
[356241331,1742127046919,-500.0,8.219e-05,2]
[356241332,1742127046928,-500.0,8.219e-05,2]
[356241333,1742127046938,-506.2357008,8.219e-05,2]
[356241334,1742127046948,-507.60289689,8.219e-05,2]
[356241335,1742127046958,-517.2983277,8.219e-05,2]
[356241336,1742127046967,-506.45146868,8.219e-05,2]
[356241337,1742127046978,-500.78003047,8.219e-05,2]
[356241338,1742127046987,-513.57304982,8.219e-05,2]
[356241339,1742127046997,-500.0,8.219e-05,2]
[356241340,1742127047007,-619.60827468,8.219e-05,2]
[356241341,1742127047017,-500.0,8.219e-05,2]
[356241342,1742127047027,-500.0,8.219e-05,2]
[356241343,1742127047037,-500.0,8.219e-05,2]
[356241344,1742127047047,-505.18581336,8.219e-05,2]
[356241345,1742127047058,-526.81579497,8.219e-05,2]
[356241346,1742127047068,-467.36,8.219e-05,2]
[356241347,1742127047078,-500.0,8.219e-05,2]
[356241348,1742127047087,-500.0,8.219e-05,2]
[356241349,1742127047098,-500.0,8.219e-05,2]
[356241350,1742127047107,-500.0,8.219e-05,2]
[356241351,1742127047118,-292.60670558,8.219e-05,2]
[356241352,1742127047132,-500.0,8.219e-05,2]
[356241353,1742127047142,-500.0,8.219e-05,2]
[356241354,1742127047152,-507.33642948,8.219e-05,2]
[356241355,1742127047162,-533.80095609,8.219e-05,2]
[356241356,1742127047172,-500.0,8.219e-05,2]
[356241357,1742127047182,-500.0,8.219e-05,2]
[356241358,1742127047192,-500.0,8.219e-05,2]
[356241359,1742127047201,-500.0,8.219e-05,2]
[356241360,1742127047211,-504.57053881,8.219e-05,2]
[356241361,1742127047221,-500.0,8.219e-05,2]
[356241362,1742127047231,-500.0,8.219e-05,2]
[356241363,1742127047240,-500.0,8.219e-05,2]
[356241364,1742127047250,-500.0,8.219e-05,2]
[356241365,1742127047260,-584.45,8.219e-05,2]
[356241366,1742127047270,-500.0,8.219e-05,2]
[356241367,1742127047280,-629.49,8.219e-05,2]
[356241368,1742127047290,-209.69881727,8.219e-05,2]
[356241369,1742127047300,-500.0,8.219e-05,2]
[356241370,1742127047310,-1781.85,8.219e-05,2]
[356241371,1742127047320,-1298.74,8.219e-05,2]
[356241372,1742127047330,-500.0,8.219e-05,2]
[356241373,1742127047340,-515.07550072,8.219e-05,2]
[356241374,1742127047350,-500.0,8.219e-05,2]
[356241375,1742127047360,-1740.46,8.219e-05,2]
[356241376,1742127047373,-500.0,8.219e-05,2]
[356241377,1742127047384,-500.0,8.219e-05,2]
[356241378,1742127047394,-500.0,8.219e-05,2]
[356241379,1742127047404,-500.0,8.219e-05,2]
[356241380,1742127047415,-570.37,8.219e-05,2]
[356241381,1742127047425,-500.0,8.219e-05,2]
[356241382,1742127047435,-500.0,8.219e-05,2]
[356241383,1742127047446,-2648.32,8.219e-05,2]
[356241384,1742127047456,-500.0,8.219e-05,2]
[356241385,1742127047466,-500.0,8.219e-05,2]
[356241386,1742127047475,-500.0,8.219e-05,2]
[356241387,1742127047485,-500.0,8.219e-05,2]
[356241388,1742127047495,-500.0,8.219e-05,2]
[356241389,1742127047506,-500.0,8.219e-05,2]
[356241390,1742127047515,-500.0,8.219e-05,2]
[356241391,1742127047525,-2259.38,8.219e-05,2]
[356241392,1742127047535,-500.0,8.219e-05,2]
[356241393,1742127047545,-382.09,8.219e-05,2]
[356241394,1742127047557,-292.69786834,8.219e-05,2]
[356241395,1742127047567,-500.0,8.219e-05,2]
[356241396,1742127047577,-500.0,8.219e-05,2]
[356241397,1742127047587,-500.0,8.219e-05,2]
[356241398,1742127047597,-560.97,8.219e-05,2]
[356241399,1742127047607,-500.0,8.219e-05,2]
[356241400,1742127047617,-500.0,8.219e-05,2]
[356241401,1742127047627,-500.0,8.219e-05,2]
[356241402,1742127047636,-500.0,8.219e-05,2]
[356241403,1742127047646,-500.0,8.219e-05,2]
[356241404,1742127047656,-500.0,8.219e-05,2]
[356241405,1742127047666,-500.0,8.219e-05,2]
[356241406,1742127047676,-4974.17,8.219e-05,2]
[356241407,1742127047686,-531.6,8.219e-05,2]
[356241408,1742127047695,-917.05,8.219e-05,2]
[356241409,1742127047705,-1870.45,8.219e-05,2]
[356241410,1742127047715,-500.0,8.219e-05,2]
[356241411,1742127047725,-500.0,8.219e-05,2]
[356241412,1742127047735,-500.0,8.219e-05,2]
[356241413,1742127047745,-1715.75,8.219e-05,2]
[356241414,1742127047755,-500.0,8.219e-05,2]
[356241415,1742127047765,-500.0,8.219e-05,2]
[356241416,1742127047776,-500.0,8.219e-05,2]
[356241417,1742127047785,-500.0,8.219e-05,2]
[356241418,1742127047795,-1076.14,8.219e-05,2]
[356241419,1742127047805,-2022.14,8.219e-05,2]
[356241420,1742127047815,-2890.53,8.219e-05,2]
[356241421,1742127047826,-70434.44679076,8.219e-05,2]
[356241423,1742127573965,3197.0,0.00014,30]
[356241481,1742128232989,-600.0,8.014e-05,2]
[356241482,1742128233000,-233.33510858,8.018e-05,2]
[356241483,1742128233009,-163.334576,8.018e-05,2]
[356241484,1742128233019,-7280.09257026,8.019e-05,2]
[356241485,1742128233031,-1697.02425,8.019e-05,2]
[356241486,1742128233042,-3422.27750981,8.019e-05,2]
[356241515,1742128238613,-45547.28649964,8.019e-05,2]
[356241516,1742128238626,-425.78035054,8.019e-05,2]
[356241517,1742128238637,-12164.04399062,8.019e-05,2]
[356241518,1742128238669,-1891.23602532,8.019e-05,2]
[356241519,1742128238680,-20292.81648402,8.019e-05,2]
[356241520,1742128238692,-16592.79859847,8.019e-05,2]
[356241559,1742128246773,-398.41325229,8.019e-05,2]
[356241560,1742128246784,-63260.83400052,8.019e-05,2]
[356241561,1742128246838,-2205.37627954,8.019e-05,2]
[356241562,1742128246896,-2495.61,8.019e-05,2]
[356241594,1742129437873,-1000.0,8.05e-05,2]
[356241595,1742129437883,-300.0,8.118e-05,2]
[356241596,1742129437893,-27788.06236628,8.119e-05,2]
[356241614,1742129443118,-249.5183108,8.119e-05,2]
[356241781,1742130632605,-206.59990355,7.938e-05,2]
[356241782,1742130632615,-256.37939432,8.018e-05,2]
[356241783,1742130632626,-475.18255457,8.018e-05,2]
[356241784,1742130632640,-500.0,8.018e-05,2]
[356241785,1742130632649,-300.0,8.018e-05,2]
[356241786,1742130632659,-70195.62095638,8.019e-05,2]
[356241858,1742130638047,-829.46,8.019e-05,2]
[356241860,1742130638058,-13782.75668012,8.019e-05,2]
[356241862,1742130638070,-1000.0,8.019e-05,2]
[356242228,1742130646206,-1304.59999994,8.019e-05,2]
[356242230,1742130646219,-50000.0,8.019e-05,2]
[356242231,1742130646326,-18585.05850068,8.019e-05,2]
[356242232,1742130646337,-402.36327675,8.109e-05,2]
[356242233,1742130646347,-156.41338495,8.109e-05,2]
[356242234,1742130646357,-750.20175217,8.11e-05,2]
[356242235,1742130646367,-156.41338493,8.137e-05,2]
[356242236,1742130646378,-156.41338493,8.164e-05,2]
[356242237,1742130646388,-699.74766223,8.164e-05,2]
[356242239,1742130646397,-156.41338493,8.192e-05,2]
[356242241,1742130646407,-500.0,8.193e-05,2]
[356242242,1742130646417,-500.70298233,8.193e-05,2]
[356242243,1742130646427,-495.06194734,8.193e-05,2]
[356242244,1742130646436,-500.0,8.193e-05,2]
[356242245,1742130646446,-500.0,8.193e-05,2]
[356242246,1742130646456,-500.0,8.193e-05,2]
[356242247,1742130646466,-500.0,8.193e-05,2]
[356242248,1742130646477,-500.0,8.193e-05,2]
[356242249,1742130646487,-385.36064771,8.193e-05,2]
[356242250,1742130646496,-500.0,8.193e-05,2]
[356242251,1742130646506,-500.0,8.193e-05,2]
[356242252,1742130646516,-500.0,8.193e-05,2]
[356242253,1742130646526,-500.0,8.193e-05,2]
[356242254,1742130646535,-500.0,8.193e-05,2]
[356242255,1742130646545,-500.0,8.193e-05,2]
[356242256,1742130646555,-158.50245674,8.193e-05,2]
[356242257,1742130646564,-522.0903175,8.193e-05,2]
[356242258,1742130646574,-500.0,8.193e-05,2]
[356242259,1742130646583,-500.0,8.193e-05,2]
[356242260,1742130646592,-500.0,8.193e-05,2]
[356242261,1742130646602,-500.0,8.193e-05,2]
[356242262,1742130646611,-500.0,8.193e-05,2]
[356242263,1742130646621,-500.0,8.193e-05,2]
[356242264,1742130646630,-500.0,8.193e-05,2]
[356242265,1742130646640,-500.0,8.193e-05,2]
[356242266,1742130646650,-500.0,8.193e-05,2]
[356242267,1742130646660,-502.85385566,8.193e-05,2]
[356242268,1742130646669,-302.00658053,8.193e-05,2]
[356242269,1742130646682,-505.27834099,8.193e-05,2]
[356242270,1742130646692,-500.0,8.193e-05,2]
[356242271,1742130646701,-500.0,8.193e-05,2]
[356242272,1742130646711,-500.0,8.194e-05,2]
[356242273,1742130646720,-560.3096017,8.2e-05,2]
[356242274,1742130646731,-155.637267,8.2e-05,2]
[356242275,1742130646740,-357.6537264,8.2e-05,2]
[356242276,1742130646750,-187.0114735,8.2e-05,2]
[356242277,1742130646762,-295.7323083,8.2e-05,2]
[356242278,1742130646771,-187.0114735,8.2e-05,2]
[356242279,1742130646781,-1215.0027233,8.2e-05,2]
[356242280,1742130646791,-155.637267,8.2e-05,2]
[356242281,1742130646800,-157.522,8.2e-05,2]
[356242282,1742130646809,-155.637267,8.2e-05,2]
[356242283,1742130646819,-187.0114735,8.2e-05,2]
[356242284,1742130646829,-187.0114735,8.2e-05,2]
[356242285,1742130646838,-187.0114735,8.2e-05,2]
[356242286,1742130646849,-187.0114735,8.2e-05,2]
[356242287,1742130646859,-187.0114735,8.2e-05,2]
[356242288,1742130646868,-187.0114735,8.2e-05,2]
[356242289,1742130646879,-187.0114735,8.2e-05,2]
[356242290,1742130646888,-186.169978,8.2e-05,2]
[356242291,1742130646898,-307.0344214,8.2e-05,2]
[356242292,1742130646908,-560.3096017,8.2e-05,2]
[356242293,1742130646918,-153.0,8.2e-05,2]
[356242294,1742130646928,-357.6537264,8.2e-05,2]
[356242295,1742130646938,-155.637267,8.2e-05,2]
[356242296,1742130646947,-187.0114735,8.2e-05,2]
[356242297,1742130646958,-357.6537264,8.2e-05,2]
[356242298,1742130646968,-187.0114735,8.2e-05,2]
[356242299,1742130646978,-153.0,8.2e-05,2]
[356242300,1742130646988,-560.3096017,8.2e-05,2]
[356242301,1742130646997,-155.637267,8.2e-05,2]
[356242302,1742130647008,-500.0000009,8.21e-05,2]
[356242303,1742130647017,-187.0114735,8.21e-05,2]
[356242304,1742130647028,-560.3096017,8.21e-05,2]
[356242305,1742130647037,-155.637267,8.21e-05,2]
[356242306,1742130647047,-357.6537264,8.21e-05,2]
[356242307,1742130647057,-190.0230857,8.21e-05,2]
[356242308,1742130647068,-357.6537264,8.21e-05,2]
[356242309,1742130647078,-231.2687869,8.21e-05,2]
[356242310,1742130647088,-560.3096017,8.21e-05,2]
[356242311,1742130647098,-179.6661588,8.21e-05,2]
[356242312,1742130647108,-187.0114735,8.21e-05,2]
[356242313,1742130647118,-600.0,8.214e-05,2]
[356242314,1742130647128,-536.05514205,8.219e-05,2]
[356242315,1742130647140,-500.0,8.219e-05,2]
[356242316,1742130647150,-500.0,8.219e-05,2]
[356242317,1742130647160,-500.0,8.219e-05,2]
[356242318,1742130647170,-397.88,8.219e-05,2]
[356242319,1742130647180,-238.42829072,8.219e-05,2]
[356242320,1742130647190,-500.0,8.219e-05,2]
[356242321,1742130647199,-500.0,8.219e-05,2]
[356242322,1742130647209,-500.0,8.219e-05,2]
[356242323,1742130647219,-500.0,8.219e-05,2]
[356242324,1742130647229,-507.68464925,8.219e-05,2]
[356242325,1742130647239,-500.0,8.219e-05,2]
[356242326,1742130647249,-586.97732737,8.219e-05,2]
[356242327,1742130647259,-500.0,8.219e-05,2]
[356242328,1742130647270,-500.0,8.219e-05,2]
[356242329,1742130647280,-500.0,8.219e-05,2]
[356242330,1742130647290,-500.0,8.219e-05,2]
[356242331,1742130647300,-342.28,8.219e-05,2]
[356242332,1742130647310,-500.0,8.219e-05,2]
[356242333,1742130647320,-500.0,8.219e-05,2]
[356242334,1742130647330,-500.0,8.219e-05,2]
[356242335,1742130647340,-500.0,8.219e-05,2]
[356242336,1742130647350,-500.0,8.219e-05,2]
[356242337,1742130647359,-500.0,8.219e-05,2]